[Event "NJSK 2021 Jeugd C"]
[Site "Almelo, Netherlands"]
[Date "2021.08.04"]
[Round "5.8"]
[White "Ramdien, Steven"]
[Black "Krylov, Philippe"]
[Result "0-1"]
[TimeControl "90min + 30sec/move"]
[WhiteElo "1589"]
[BlackElo "1339"]

1. e4 {[%clk 01:30:58]} {[%emt 00:00:01]} c6 {[%clk 01:30:58]} {[%emt
00:00:03]} 2. d4 {[%clk 01:31:23]} {[%emt 00:00:05]} d5 {[%clk 01:31:24]}
{[%emt 00:00:04]} 3. exd5 {[%clk 01:31:43]} {[%emt 00:00:10]} cxd5 {[%clk
01:31:48]} {[%emt 00:00:06]} 4. Bd3 {[%clk 01:32:02]} {[%emt 00:00:08]} Nc6
{[%clk 01:31:44]} {[%emt 00:00:36]} 5. c3 {[%clk 01:32:25]} {[%emt 00:00:06]}
Nf6 {[%clk 01:30:53]} {[%emt 00:01:22]} 6. Bf4 {[%clk 01:32:33]} {[%emt
00:00:22]} Bg4 {[%clk 01:30:35]} {[%emt 00:00:48]} 7. Qc2 {[%clk 01:32:29]}
{[%emt 00:00:35]} e6 {[%clk 01:30:31]} {[%emt 00:00:34]} 8. Nd2 {[%clk
01:32:37]} {[%emt 00:00:21]} Be7 {[%clk 01:29:57]} {[%emt 00:01:04]} 9. Ngf3
{[%clk 01:31:55]} {[%emt 00:01:11]} Rc8 {[%clk 01:29:48]} {[%emt 00:00:41]} 10.
h3 {[%clk 01:31:26]} {[%emt 00:00:59]} Bh5 {[%clk 01:29:10]} {[%emt 00:01:07]}
11. O-O {[%clk 01:31:41]} {[%emt 00:00:15]} O-O {[%clk 01:29:30]} {[%emt
00:00:10]} 12. Bg5 {[%clk 01:29:40]} {[%emt 00:02:30]} Nb4 {[%clk 01:25:54]}
{[%emt 00:04:08]} 13. Qb1 {[%clk 01:29:06]} {[%emt 00:01:04]} Nxd3 {[%clk
01:26:12]} {[%emt 00:00:12]} 14. Qxd3 {[%clk 01:29:34]} {[%emt 00:00:02]} a6
{[%clk 01:25:16]} {[%emt 00:01:26]} 15. Ne5 {[%clk 01:27:21]} {[%emt 00:02:41]}
Nd7 {[%clk 01:25:09]} {[%emt 00:00:38]} 16. Bxe7 {[%clk 01:25:32]} {[%emt
00:02:20]} Qxe7 {[%clk 01:25:16]} {[%emt 00:00:23]} 17. Ndf3 {[%clk 01:24:03]}
{[%emt 00:01:58]} Nxe5 {[%clk 01:25:08]} {[%emt 00:00:38]} 18. Nxe5 {[%clk
01:24:18]} {[%emt 00:00:15]} Bg6 {[%clk 01:25:28]} {[%emt 00:00:11]} 19. Nxg6
{[%clk 01:24:11]} {[%emt 00:00:37]} hxg6 {[%clk 01:25:52]} {[%emt 00:00:05]} 20.
f4 {[%clk 01:24:02]} {[%emt 00:00:39]} b5 {[%clk 01:25:32]} {[%emt 00:00:51]}
21. Rae1 {[%clk 01:23:57]} {[%emt 00:00:34]} Qd6 {[%clk 01:25:46]} {[%emt
00:00:18]} 22. Qf3 {[%clk 01:17:50]} {[%emt 00:06:35]} b4 {[%clk 01:25:07]}
{[%emt 00:01:09]} 23. Rc1 {[%clk 01:09:22]} {[%emt 00:08:58]} bxc3 {[%clk
01:24:01]} {[%emt 00:01:35]} 24. bxc3 {[%clk 01:09:23]} {[%emt 00:00:29]} Rc4
{[%clk 01:24:16]} {[%emt 00:00:16]} 25. Rc2 {[%clk 01:08:34]} {[%emt 00:01:18]}
Rfc8 {[%clk 01:24:21]} {[%emt 00:00:25]} 26. Rfc1 {[%clk 01:08:27]} {[%emt
00:00:37]} R8c6 {[%clk 01:24:14]} {[%emt 00:00:37]} 27. Qe3 {[%clk 01:05:10]}
{[%emt 00:03:47]} Qc7 {[%clk 01:23:54]} {[%emt 00:00:50]} 28. g3 {[%clk
01:03:23]} {[%emt 00:02:17]} Qb7 {[%clk 01:18:27]} {[%emt 00:05:58]} 29. Kf2
{[%clk 00:55:48]} {[%emt 00:08:04]} Rb6 {[%clk 01:17:57]} {[%emt 00:01:00]} 30.
Ke2 {[%clk 00:53:13]} {[%emt 00:03:05]} Rb2 {[%clk 01:14:31]} {[%emt 00:03:56]}
31. Qd2 {[%clk 00:52:50]} {[%emt 00:00:52]} Rxc2 {[%clk 01:06:05]} {[%emt
00:08:58]} 32. Qxc2 {[%clk 00:51:26]} {[%emt 00:01:53]} Qb5 {[%clk 01:05:56]}
{[%emt 00:00:39]} 33. Ke3 {[%clk 00:48:36]} {[%emt 00:03:19]} Qa5 {[%clk
01:05:43]} {[%emt 00:00:44]} 34. Qb3 {[%clk 00:47:37]} {[%emt 00:01:28]} Kh7
{[%clk 01:04:28]} {[%emt 00:01:45]} 35. g4 {[%clk 00:43:02]} {[%emt 00:05:05]}
Ra4 {[%clk 01:04:25]} {[%emt 00:00:32]} 36. Rc2 {[%clk 00:42:51]} {[%emt
00:00:41]} Ra3 {[%clk 01:02:39]} {[%emt 00:02:17]} 37. Qb2 {[%clk 00:42:45]}
{[%emt 00:00:36]} Qa4 {[%clk 01:00:31]} {[%emt 00:02:38]} 38. h4 {[%clk
00:35:40]} {[%emt 00:07:35]} Qa5 {[%clk 00:59:52]} {[%emt 00:01:09]} 39. h5
{[%clk 00:34:03]} {[%emt 00:02:06]} gxh5 {[%clk 00:59:16]} {[%emt 00:01:07]} 40.
gxh5 {[%clk 00:32:06]} {[%emt 00:02:27]} Ra4 {[%clk 00:58:14]} {[%emt
00:01:32]} 41. h6 {[%clk 00:30:17]} {[%emt 00:02:18]} Rc4 {[%clk 00:54:38]}
{[%emt 00:04:07]} 42. hxg7 {[%clk 00:30:02]} {[%emt 00:00:45]} Kxg7 {[%clk
00:54:53]} {[%emt 00:00:14]} 43. Kf3 {[%clk 00:18:39]} {[%emt 00:11:54]} Qc7
{[%clk 00:51:30]} {[%emt 00:03:53]} 44. Rc1 {[%clk 00:16:38]} {[%emt 00:02:31]}
Qc8 {[%clk 00:48:10]} {[%emt 00:03:50]} 45. Qd2 {[%clk 00:15:48]} {[%emt
00:01:20]} Kf6 {[%clk 00:44:29]} {[%emt 00:04:12]} 46. Qe3 {[%clk 00:15:38]}
{[%emt 00:00:39]} Ke7 {[%clk 00:44:07]} {[%emt 00:00:51]} 47. Ke2 {[%clk
00:14:49]} {[%emt 00:01:19]} Qh8 {[%clk 00:44:03]} {[%emt 00:00:34]} 48. Qg3
{[%clk 00:14:23]} {[%emt 00:00:55]} Qh5+ {[%clk 00:43:48]} {[%emt 00:00:46]} 49.
Ke3 {[%clk 00:14:27]} {[%emt 00:00:26]} Qf5 {[%clk 00:42:46]} {[%emt 00:01:33]}
50. Qg5+ {[%clk 00:13:54]} {[%emt 00:01:03]} Qxg5 {[%clk 00:42:05]} {[%emt
00:01:10]} 51. fxg5 {[%clk 00:14:23]} {[%emt 00:00:02]} Kf8 {[%clk 00:41:53]}
{[%emt 00:00:42]} 52. Kf4 {[%clk 00:14:40]} {[%emt 00:00:13]} Kg7 {[%clk
00:42:05]} {[%emt 00:00:18]} 53. Ke5 {[%clk 00:14:31]} {[%emt 00:00:39]} Kg6
{[%clk 00:42:02]} {[%emt 00:00:33]} 54. Kf4 {[%clk 00:14:52]} {[%emt 00:00:08]}
Rc6 {[%clk 00:41:34]} {[%emt 00:00:58]} 55. Rc2 {[%clk 00:14:32]} {[%emt
00:00:51]} a5 {[%clk 00:41:42]} {[%emt 00:00:23]} 56. Rc1 {[%clk 00:14:48]}
{[%emt 00:00:14]} a4 {[%clk 00:42:03]} {[%emt 00:00:08]} 57. Rc2 {[%clk
00:14:43]} {[%emt 00:00:35]} a3 {[%clk 00:42:21]} {[%emt 00:00:13]} 58. Rc1
{[%clk 00:14:51]} {[%emt 00:00:21]} Rb6 {[%clk 00:42:33]} {[%emt 00:00:19]} 59.
c4 {[%clk 00:15:08]} {[%emt 00:00:12]} dxc4 {[%clk 00:42:50]} {[%emt 00:00:13]}
60. Rxc4 {[%clk 00:15:30]} {[%emt 00:00:08]} Rb2 {[%clk 00:43:10]} {[%emt
00:00:10]} 61. Ra4 {[%clk 00:15:39]} {[%emt 00:00:21]} Rxa2 {[%clk 00:43:32]}
{[%emt 00:00:09]} 62. Ra6 {[%clk 00:15:35]} {[%emt 00:00:34]} Ra1 {[%clk
00:43:24]} {[%emt 00:00:38]} 63. Ke3 {[%clk 00:15:55]} {[%emt 00:00:09]} Kxg5
{[%clk 00:43:32]} {[%emt 00:00:22]} 64. Ra5+ {[%clk 00:16:02]} {[%emt
00:00:23]} Kg6 {[%clk 00:43:47]} {[%emt 00:00:15]} 65. Ra6 {[%clk 00:16:27]}
{[%emt 00:00:05]} a2 {[%clk 00:44:09]} {[%emt 00:00:09]} 66. Kd2 {[%clk
00:16:51]} {[%emt 00:00:05]} Rh1 {[%clk 00:44:31]} {[%emt 00:00:08]} 67. Kd3
{[%emt 00:00:53]} 0-1

[Event "NJSK 2021 Jeugd C"]
[Site "Almelo, Netherlands"]
[Date "2021.08.04"]
[Round "5.9"]
[White "Katpatal, Akshaj"]
[Black "Kien, Lancelot"]
[Result "1-0"]
[TimeControl "90min + 30sec/move"]
[WhiteElo "1650"]
[BlackElo "1650"]

1. e4 {[%clk 01:30:56]} {[%emt 00:00:03]} e5 {[%clk 01:30:57]} {[%emt
00:00:04]} 2. Nf3 {[%clk 01:31:19]} {[%emt 00:00:08]} Nc6 {[%clk 01:31:19]}
{[%emt 00:00:08]} 3. Bc4 {[%clk 01:31:32]} {[%emt 00:00:16]} Bc5 {[%clk
01:31:39]} {[%emt 00:00:10]} 4. O-O {[%clk 01:31:46]} {[%emt 00:00:16]} Nf6
{[%clk 01:31:54]} {[%emt 00:00:15]} 5. d3 {[%clk 01:32:03]} {[%emt 00:00:13]}
h6 {[%clk 01:31:39]} {[%emt 00:00:46]} 6. Be3 {[%clk 01:32:20]} {[%emt
00:00:11]} Bb6 {[%clk 01:31:48]} {[%emt 00:00:21]} 7. Bxb6 {[%clk 01:32:24]}
{[%emt 00:00:26]} axb6 {[%clk 01:32:10]} {[%emt 00:00:09]} 8. a3 {[%clk
01:32:39]} {[%emt 00:00:15]} O-O {[%clk 01:31:54]} {[%emt 00:00:47]} 9. Nc3
{[%clk 01:32:37]} {[%emt 00:00:32]} d6 {[%clk 01:31:58]} {[%emt 00:00:25]} 10.
Nh4 {[%clk 01:32:06]} {[%emt 00:01:00]} Nxe4 {[%clk 01:25:26]} {[%emt
00:07:03]} 11. Ng6 {[%clk 01:31:59]} {[%emt 00:00:37]} Nxc3 {[%clk 01:23:26]}
{[%emt 00:02:30]} 12. bxc3 {[%clk 01:32:22]} {[%emt 00:00:07]} d5 {[%clk
01:16:50]} {[%emt 00:07:06]} 13. Bxd5 {[%clk 01:32:27]} {[%emt 00:00:25]} Qxd5
{[%clk 01:16:38]} {[%emt 00:00:42]} 14. Nxf8 {[%clk 01:32:47]} {[%emt
00:00:09]} Kxf8 {[%clk 01:16:40]} {[%emt 00:00:29]} 15. Qd2 {[%clk 01:23:00]}
{[%emt 00:10:16]} b5 {[%clk 01:10:20]} {[%emt 00:06:51]} 16. Qe3 {[%clk
01:07:59]} {[%emt 00:15:31]} Qd6 {[%clk 01:01:38]} {[%emt 00:09:12]} 17. Qc1
{[%clk 01:08:09]} {[%emt 00:00:20]} Qc5 {[%clk 00:59:57]} {[%emt 00:02:11]} 18.
Qb2 {[%clk 01:06:11]} {[%emt 00:02:28]} b6 {[%clk 00:58:40]} {[%emt 00:01:48]}
19. h3 {[%clk 01:03:04]} {[%emt 00:03:36]} Ra4 {[%clk 00:56:38]} {[%emt
00:02:32]} 20. Rfb1 {[%clk 01:03:06]} {[%emt 00:00:28]} Na7 {[%clk 00:56:17]}
{[%emt 00:00:51]} 21. Rd1 {[%clk 01:00:42]} {[%emt 00:02:53]} Be6 {[%clk
00:47:46]} {[%emt 00:09:02]} 22. d4 {[%clk 00:59:26]} {[%emt 00:01:44]} Qc4
{[%clk 00:47:14]} {[%emt 00:01:04]} 23. dxe5 {[%clk 00:56:49]} {[%emt
00:03:07]} Ke7 {[%clk 00:42:56]} {[%emt 00:04:48]} 24. Rd3 {[%clk 00:56:26]}
{[%emt 00:00:52]} Qc5 {[%clk 00:33:52]} {[%emt 00:09:35]} 25. Rd4 {[%clk
00:54:50]} {[%emt 00:02:06]} Bc4 {[%clk 00:33:48]} {[%emt 00:00:34]} 26. Qc1
{[%clk 00:53:55]} {[%emt 00:01:24]} Qxe5 {[%clk 00:28:26]} {[%emt 00:05:53]} 27.
Qd2 {[%clk 00:54:09]} {[%emt 00:00:16]} Be6 {[%clk 00:26:41]} {[%emt 00:02:16]}
28. Rxa4 {[%clk 00:53:55]} {[%emt 00:00:43]} bxa4 {[%clk 00:26:56]} {[%emt
00:00:16]} 29. Rd1 {[%clk 00:54:08]} {[%emt 00:00:16]} Nc6 {[%clk 00:26:47]}
{[%emt 00:00:39]} 30. Qd3 {[%clk 00:51:12]} {[%emt 00:03:24]} Qc5 {[%clk
00:21:45]} {[%emt 00:05:34]} 31. Qg3 {[%clk 00:50:11]} {[%emt 00:01:29]} Qe5
{[%clk 00:21:20]} {[%emt 00:00:57]} 32. Qf3 {[%clk 00:47:40]} {[%emt 00:03:25]}
Qc5 {[%clk 00:18:53]} {[%emt 00:02:58]} 33. Qg3 {[%clk 00:47:48]} {[%emt
00:00:22]} Qe5 {[%clk 00:17:33]} {[%emt 00:01:50]} 34. Qh4+ {[%clk 00:48:06]}
{[%emt 00:00:11]} Qf6 {[%clk 00:15:42]} {[%emt 00:02:21]} 35. Qxa4 {[%clk
00:48:07]} {[%emt 00:00:29]} Qxc3 {[%clk 00:15:52]} {[%emt 00:00:21]} 36. Rd3
{[%clk 00:47:46]} {[%emt 00:00:49]} Qa1+ {[%clk 00:15:16]} {[%emt 00:01:08]} 37.
Kh2 {[%clk 00:47:59]} {[%emt 00:00:16]} Qe5+ {[%clk 00:15:30]} {[%emt
00:00:16]} 38. g3 {[%clk 00:45:34]} {[%emt 00:02:55]} Qc5 {[%clk 00:14:33]}
{[%emt 00:01:27]} 39. Qf4 {[%clk 00:43:32]} {[%emt 00:02:30]} Ne5 {[%clk
00:13:25]} {[%emt 00:01:40]} 40. Re3 {[%clk 00:40:21]} {[%emt 00:03:39]} f6
{[%clk 00:12:44]} {[%emt 00:01:14]} 41. Qe4 {[%clk 00:34:42]} {[%emt 00:06:08]}
Bd5 {[%clk 00:09:37]} {[%emt 00:03:37]} 42. Qf5 {[%clk 00:30:24]} {[%emt
00:04:48]} Kf7 {[%emt 00:01:27]} 43. Rxe5 {[%clk 00:29:24]} {[%emt 00:01:30]}
1-0

[Event "NJSK 2021 Jeugd C"]
[Site "Almelo, Netherlands"]
[Date "2021.08.04"]
[Round "5.10"]
[White "Blom, Rens"]
[Black "Pancharajah, Abisan"]
[Result "0-1"]
[TimeControl "90min + 30sec/move"]
[WhiteElo "1650"]
[BlackElo "1650"]

1. c4 {[%clk 01:30:59]} Nf6 {[%clk 01:30:53]} {[%emt 00:00:07]} 2. Nc3 {[%clk
01:31:23]} {[%emt 00:00:07]} g6 {[%clk 01:31:12]} {[%emt 00:00:10]} 3. Nf3
{[%clk 01:31:41]} {[%emt 00:00:12]} Bg7 {[%clk 01:31:29]} {[%emt 00:00:13]} 4.
d4 {[%clk 01:32:03]} {[%emt 00:00:08]} O-O {[%clk 01:31:47]} {[%emt 00:00:11]}
5. e4 {[%clk 01:32:28]} {[%emt 00:00:07]} d6 {[%clk 01:32:07]} {[%emt
00:00:09]} 6. Be2 {[%clk 01:32:44]} {[%emt 00:00:14]} e5 {[%clk 01:32:32]}
{[%emt 00:00:05]} 7. O-O {[%clk 01:33:04]} {[%emt 00:00:10]} Nc6 {[%clk
01:32:58]} {[%emt 00:00:04]} 8. d5 {[%clk 01:33:17]} {[%emt 00:00:18]} Ne7
{[%clk 01:33:09]} {[%emt 00:00:18]} 9. Ne1 {[%clk 01:33:38]} {[%emt 00:00:09]}
Nd7 {[%clk 01:33:27]} {[%emt 00:00:13]} 10. Be3 {[%clk 01:33:59]} {[%emt
00:00:08]} f5 {[%clk 01:33:52]} {[%emt 00:00:05]} 11. f3 {[%clk 01:34:24]}
{[%emt 00:00:05]} f4 {[%clk 01:34:17]} {[%emt 00:00:06]} 12. Bf2 {[%clk
01:34:49]} {[%emt 00:00:04]} g5 {[%clk 01:34:43]} {[%emt 00:00:04]} 13. a4
{[%clk 01:34:23]} {[%emt 00:00:56]} Ng6 {[%clk 01:34:05]} {[%emt 00:01:08]} 14.
a5 {[%clk 01:33:18]} {[%emt 00:01:37]} Nf6 {[%clk 01:33:21]} {[%emt 00:01:13]}
15. a6 {[%clk 01:31:44]} {[%emt 00:02:04]} b6 {[%clk 01:31:28]} {[%emt
00:02:23]} 16. Nd3 {[%clk 01:26:22]} {[%emt 00:05:52]} h5 {[%clk 01:30:02]}
{[%emt 00:01:55]} 17. b4 {[%clk 01:17:39]} {[%emt 00:09:15]} g4 {[%clk
01:26:52]} {[%emt 00:03:39]} 18. c5 {[%clk 01:14:09]} {[%emt 00:04:00]} g3
{[%clk 01:24:52]} {[%emt 00:02:29]} 19. Be1 {[%clk 01:12:01]} {[%emt 00:02:38]}
h4 {[%clk 01:20:56]} {[%emt 00:04:26]} 20. h3 {[%clk 01:09:24]} {[%emt
00:03:07]} Nh7 {[%clk 01:19:56]} {[%emt 00:01:29]} 21. Bd2 {[%clk 01:01:33]}
{[%emt 00:08:22]} Ng5 {[%clk 01:11:34]} {[%emt 00:08:51]} 22. Re1 {[%clk
00:55:20]} {[%emt 00:06:44]} Bxh3 {[%clk 01:11:13]} {[%emt 00:00:50]} 23. Bf1
{[%clk 00:52:09]} {[%emt 00:03:43]} Bxg2 {[%clk 01:02:22]} {[%emt 00:09:21]} 24.
Bxg2 {[%clk 00:52:19]} {[%emt 00:00:19]} h3 {[%clk 01:02:40]} {[%emt 00:00:12]}
25. Re2 {[%clk 00:39:57]} {[%emt 00:12:53]} hxg2 {[%clk 00:59:37]} {[%emt
00:03:33]} 26. Ne1 {[%clk 00:37:34]} {[%emt 00:02:53]} Nh3+ {[%clk 00:54:27]}
{[%emt 00:05:38]} 27. Kxg2 {[%clk 00:37:58]} {[%emt 00:00:08]} Nf2 {[%clk
00:53:42]} {[%emt 00:01:14]} 28. Rxf2 {[%clk 00:36:07]} {[%emt 00:02:21]} Qh4
{[%clk 00:50:52]} {[%emt 00:03:11]} 29. Nd3 {[%clk 00:30:43]} {[%emt 00:06:03]}
gxf2 {[%clk 00:50:53]} {[%emt 00:00:30]} 30. Nxf2 {[%clk 00:30:56]} {[%emt
00:00:16]} Qg3+ {[%clk 00:48:43]} {[%emt 00:02:37]} 31. Kf1 {[%clk 00:30:20]}
{[%emt 00:01:09]} Nh4 {[%clk 00:48:21]} {[%emt 00:00:50]} 32. cxd6 {[%clk
00:25:29]} {[%emt 00:05:23]} Qg2+ {[%clk 00:47:12]} {[%emt 00:01:37]} 33. Ke2
{[%clk 00:24:35]} {[%emt 00:01:25]} Nxf3 {[%clk 00:45:58]} {[%emt 00:01:44]} 34.
Nb5 {[%clk 00:20:11]} {[%emt 00:04:55]} Nd4+ {[%clk 00:44:29]} {[%emt
00:01:58]} 35. Nxd4 {[%emt 00:00:11]} exd4 {[%clk 00:44:47]} {[%emt 00:00:08]}
36. Qg1 {[%clk 00:19:26]} {[%emt 00:01:40]} d3+ {[%clk 00:44:53]} {[%emt
00:00:23]} 37. Kxd3 {[%clk 00:19:47]} {[%emt 00:00:10]} Qf3+ {[%clk 00:45:11]}
{[%emt 00:00:07]} 38. Kc2 {[%clk 00:19:47]} {[%emt 00:00:34]} cxd6 {[%clk
00:45:02]} {[%emt 00:00:39]} 39. e5 {[%clk 00:12:27]} {[%emt 00:07:51]} Rac8+
{[%clk 00:44:56]} {[%emt 00:00:33]} 40. Kb2 {[%clk 00:12:45]} {[%emt 00:00:14]}
dxe5 {[%emt 00:02:54]} 41. Rc1 {[%clk 00:10:57]} e4+ {[%clk 00:44:45]} {[%emt
00:00:35]} 42. Ka2 {[%clk 00:11:17]} {[%emt 00:00:10]} e3 {[%clk 00:45:00]}
{[%emt 00:00:15]} 43. Rc3 {[%clk 00:10:28]} {[%emt 00:01:18]} Qxf2 {[%clk
00:45:09]} {[%emt 00:00:21]} 44. Qg4 {[%clk 00:06:42]} {[%emt 00:04:16]} Qxd2+
{[%clk 00:45:26]} {[%emt 00:00:13]} 45. Kb1 {[%clk 00:06:44]} {[%emt 00:00:28]}
Qxc3 {[%clk 00:45:01]} {[%emt 00:00:55]} 46. Qe6+ {[%clk 00:06:58]} {[%emt
00:00:16]} Rf7 {[%clk 00:45:22]} {[%emt 00:00:09]} 0-1

[Event "NJSK 2021 Jeugd C"]
[Site "Almelo, Netherlands"]
[Date "2021.08.04"]
[Round "5.11"]
[White "Lopes, Samuel"]
[Black "Kumar, Prayan Sai"]
[Result "1-0"]
[TimeControl "90min + 30sec/move"]
[WhiteElo "1124"]
[BlackElo "1652"]

1. e4 {[%clk 01:30:58]} {[%emt 00:00:01]} c6 {[%emt 00:00:26]} 2. d4 {[%clk
01:31:15]} d5 {[%clk 01:30:49]} {[%emt 00:00:28]} 3. exd5 {[%clk 01:31:37]}
{[%emt 00:00:08]} cxd5 {[%clk 01:31:08]} {[%emt 00:00:11]} 4. Bf4 {[%clk
01:31:49]} {[%emt 00:00:18]} Nc6 {[%clk 01:30:54]} {[%emt 00:00:45]} 5. Nc3
{[%clk 01:32:06]} {[%emt 00:00:12]} Nf6 {[%clk 01:30:37]} {[%emt 00:00:47]} 6.
Nb5 {[%clk 01:32:11]} {[%emt 00:00:26]} Qa5+ {[%clk 01:30:11]} {[%emt
00:00:55]} 7. c3 {[%clk 01:32:26]} {[%emt 00:00:15]} e5 {[%clk 01:25:01]}
{[%emt 00:05:40]} 8. dxe5 {[%clk 01:31:38]} {[%emt 00:01:18]} Nd7 {[%clk
01:24:33]} {[%emt 00:00:58]} 9. e6 {[%clk 01:31:41]} {[%emt 00:00:27]} fxe6
{[%clk 01:24:09]} {[%emt 00:00:54]} 10. Nc7+ {[%clk 01:32:01]} {[%emt
00:00:10]} Ke7 {[%clk 01:22:41]} {[%emt 00:01:58]} 11. Nxa8 {[%clk 01:31:48]}
{[%emt 00:00:44]} e5 {[%clk 01:21:58]} {[%emt 00:01:13]} 12. Nc7 {[%clk
01:31:01]} {[%emt 00:01:16]} Qxc7 {[%clk 01:20:09]} {[%emt 00:02:19]} 13. Bg5+
{[%clk 01:30:48]} {[%emt 00:00:43]} Nf6 {[%clk 01:19:14]} {[%emt 00:01:25]} 14.
Qxd5 {[%clk 01:30:31]} {[%emt 00:00:47]} Be6 {[%clk 01:19:09]} {[%emt
00:00:35]} 15. Bxf6+ {[%clk 01:30:26]} {[%emt 00:00:35]} gxf6 {[%clk 01:19:19]}
{[%emt 00:00:19]} 16. Qe4 {[%clk 01:29:06]} {[%emt 00:01:50]} Bg7 {[%clk
01:14:02]} {[%emt 00:05:48]} 17. Nf3 {[%clk 01:26:56]} {[%emt 00:02:40]} f5
{[%clk 01:13:02]} {[%emt 00:01:30]} 18. Qe3 {[%clk 01:26:17]} {[%emt 00:01:08]}
h5 {[%clk 01:10:45]} {[%emt 00:02:49]} 19. Bc4 {[%clk 01:25:36]} {[%emt
00:01:11]} Bxc4 {[%clk 01:10:49]} {[%emt 00:00:25]} 20. Qc5+ {[%clk 01:25:57]}
{[%emt 00:00:09]} Qd6 {[%clk 01:08:36]} {[%emt 00:02:43]} 21. Qxc4 {[%clk
01:24:47]} {[%emt 00:01:40]} Rd8 {[%clk 01:07:56]} {[%emt 00:01:10]} 22. O-O
{[%clk 01:23:54]} {[%emt 00:01:23]} e4 {[%clk 01:06:19]} {[%emt 00:02:07]} 23.
Nh4 {[%clk 01:23:08]} {[%emt 00:01:16]} Rf8 {[%clk 01:04:29]} {[%emt 00:02:20]}
24. Rad1 {[%clk 01:20:19]} {[%emt 00:03:19]} Qf6 {[%clk 01:02:28]} {[%emt
00:02:32]} 25. Qc5+ {[%clk 01:19:38]} {[%emt 00:01:10]} Ke8 {[%clk 01:02:02]}
{[%emt 00:00:56]} 26. Qd6 {[%clk 01:19:41]} {[%emt 00:00:27]} Ne7 {[%clk
01:00:16]} {[%emt 00:02:16]} 27. Qxf6 {[%clk 01:18:53]} {[%emt 00:01:17]} Bxf6
{[%clk 01:00:37]} {[%emt 00:00:10]} 28. g3 {[%clk 01:19:11]} {[%emt 00:00:12]}
f4 {[%clk 00:59:45]} {[%emt 00:01:23]} 29. Ng2 {[%clk 01:19:12]} {[%emt
00:00:28]} f3 {[%clk 00:59:50]} {[%emt 00:00:25]} 30. Nf4 {[%clk 01:19:06]}
{[%emt 00:00:35]} Be5 {[%clk 00:56:57]} {[%emt 00:03:24]} 31. Ne6 {[%clk
01:17:51]} {[%emt 00:01:45]} Rh8 {[%clk 00:50:28]} {[%emt 00:06:34]} 1-0